fUST/lending_fUST_20240612
["ID","MTS","AMOUNT","RATE_DAILY","PERIOD"]
[329191437,1718166655506,-500.0,0.00016986,4]
[329191438,1718166655517,-507.71,0.00016986,2]
[329191439,1718166655528,-501.08716717,0.00016986,2]
[329191440,1718166655538,-502.82407314,0.00016986,2]
[329191441,1718166655548,-432.0971897,0.00016986,2]
[329191442,1718166655558,-1359.272283,0.00016986,2]
[329191443,1718166655568,-500.0,0.00016986,2]
[329191444,1718166655579,-1359.272283,0.00016986,2]
[329191445,1718166655589,-183.79379664,0.00016986,2]
[329191446,1718166655600,-500.0,0.00016986,2]
[329191447,1718166655609,-1359.272283,0.00016986,2]
[329191448,1718166655619,-1359.272292,0.00016986,2]
[329191449,1718166655642,-500.0,0.00016986,2]
[329191450,1718166655659,-586.59021991,0.00016986,2]
[329191451,1718166655669,-500.0,0.00016986,2]
[329191452,1718166655680,-500.0,0.00016986,2]
[329191453,1718166655690,-500.0,0.00016986,2]
[329191454,1718166655699,-500.0,0.00016986,2]
[329191455,1718166655708,-705.02,0.00016986,2]
[329191456,1718166655718,-500.0,0.00016986,2]
[329191457,1718166655729,-500.0,0.00016986,2]
[329191458,1718166655740,-500.0,0.00016986,2]
[329191459,1718166655750,-542.49802062,0.00016986,2]
[329191460,1718166655760,-500.0,0.00016986,2]
[329191461,1718166655770,-6018.23,0.00016986,2]
[329191462,1718166655781,-500.0,0.00016986,2]
[329191463,1718166655791,-992.78,0.00016986,2]
[329191464,1718166655801,-502.44994939,0.00016986,2]
[329191465,1718166655810,-500.0,0.00016986,2]
[329191466,1718166655820,-500.0,0.00016986,2]
[329191467,1718166655830,-500.0,0.00016986,2]
[329191468,1718166655840,-506.08390573,0.00016986,2]
[329191469,1718166655850,-509.61495465,0.00016986,2]
[329191470,1718166655860,-500.0,0.00016986,2]
[329191471,1718166655869,-507.25653652,0.00016986,2]
[329191472,1718166655879,-500.0,0.00016986,2]
[329191473,1718166655889,-500.0,0.00016986,2]
[329191474,1718166655899,-500.0,0.00016986,2]
[329191475,1718166655908,-500.0,0.00016986,2]
[329191476,1718166655918,-500.0,0.00016986,2]
[329191477,1718166655928,-500.0,0.00016986,2]
[329191478,1718166655939,-511.51904992,0.00016986,2]
[329191479,1718166655949,-500.0,0.00016986,2]
[329191480,1718166655960,-505.79840497,0.00016986,2]
[329191481,1718166655972,-500.0,0.00016986,2]
[329191482,1718166655982,-500.0,0.00016986,2]
[329191483,1718166655992,-500.0,0.00016986,2]
[329191484,1718166656002,-500.0,0.00016986,2]
[329191485,1718166656012,-500.0,0.00016986,2]
[329191486,1718166656023,-500.0,0.00016986,2]
[329191487,1718166656033,-500.0,0.00016986,2]
[329191488,1718166656043,-500.0,0.00016986,2]
[329191489,1718166656054,-516.39973191,0.00016986,2]
[329191490,1718166656064,-441.77234693,0.00016986,2]
[329191491,1718166656075,-646.24,0.00016986,2]
[329191492,1718166656085,-953.2,0.00016986,2]
[329191493,1718166656095,-500.0,0.00016986,2]
[329191494,1718166656106,-502.58906716,0.00016986,2]
[329191495,1718166656117,-1889.77,0.00016986,2]
[329191496,1718166656128,-520.77763257,0.00016986,2]
[329191497,1718166656138,-505.61753516,0.00016986,2]
[329191498,1718166656148,-400.27,0.00016986,2]
[329191499,1718166656159,-500.0,0.00016986,2]
[329191500,1718166656169,-500.0,0.00016986,2]
[329191501,1718166656179,-500.0,0.00016986,2]
[329191502,1718166656190,-500.0,0.00016986,2]
[329191503,1718166656200,-500.0,0.00016986,2]
[329191504,1718166656211,-500.0,0.00016986,2]
[329191505,1718166656221,-510.50646292,0.00016986,2]
[329191506,1718166656232,-500.0,0.00016986,2]
[329191507,1718166656243,-562.29667143,0.00016986,2]
[329191508,1718166656255,-500.0,0.00016986,2]
[329191509,1718166656265,-505.79303844,0.00016986,2]
[329191510,1718166656276,-310.41976195,0.00016986,2]
[329191511,1718166656287,-1000.0,0.00017,2]
[329191512,1718166656298,-238040.19893405,0.00017111,2]
[329191513,1718166656308,-205.3436861,0.00017196,2]
[329191514,1718166656319,-154.4961721,0.00017196,2]
[329191515,1718166656329,-153.0,0.00017196,2]
[329191516,1718166656339,-153.0,0.00017196,2]
[329191517,1718166656349,-409.934999,0.00017196,2]
[329191518,1718166656360,-153.0,0.00017196,2]
[329191519,1718166656371,-153.0,0.00017196,2]
[329191520,1718166656386,-205.3436861,0.00017196,2]
[329191521,1718166656396,-153.0,0.00017196,2]
[329191522,1718166656406,-205.3436861,0.00017196,2]
[329191523,1718166656416,-153.0,0.00017196,2]
[329191524,1718166656428,-409.7439183,0.00017196,2]
[329191525,1718166656439,-205.3436861,0.00017196,2]
[329191526,1718166656449,-153.0,0.00017205,2]
[329191527,1718166656460,-292.5693121,0.00017205,2]
[329191528,1718166656470,-153.0,0.00017205,2]
[329191529,1718166656480,-205.3436861,0.00017205,2]
[329191530,1718166656490,-799.52,0.00017212,2]
[329191531,1718166656501,-627.28,0.00017212,2]
[329191532,1718166656511,-500.0,0.00017212,2]
[329191533,1718166656521,-500.0,0.00017212,2]
[329191534,1718166656531,-500.0,0.00017212,2]
[329191535,1718166656541,-500.0,0.00017212,2]
[329191536,1718166656552,-3971.94,0.00017212,2]
[329191537,1718166656563,-151.0,0.00017213,2]
[329191538,1718166656573,-500.0,0.00017213,2]
[329191539,1718166656583,-500.0,0.00017213,2]
[329191540,1718166656593,-500.0,0.00017213,2]
[329191541,1718166656603,-500.0,0.00017213,2]
[329191542,1718166656613,-151.0,0.00017213,2]
[329191543,1718166656623,-151.0,0.00017213,2]
[329191544,1718166656638,-242.249899,0.00017213,2]
[329191545,1718166656658,-242.249899,0.00017213,2]
[329191546,1718166656668,-151.0,0.00017213,2]
[329191547,1718166656679,-151.0,0.00017213,2]
[329191548,1718166656689,-186.421928,0.00017213,2]
[329191549,1718166656700,-186.421928,0.00017213,2]
[329191550,1718166656710,-235.30919,0.00017213,2]
[329191551,1718166656720,-235.30919,0.00017213,2]
[329191552,1718166656731,-627.28,0.00017259,2]
[329191553,1718166656741,-500.0,0.00017259,2]
[329191554,1718166656751,-3971.94,0.00017259,2]
[329191555,1718166656762,-3971.94,0.00017259,2]
[329191556,1718166656772,-151.0,0.0001726,2]
[329191557,1718166656782,-500.0,0.0001726,2]
[329191558,1718166656792,-500.0,0.0001726,2]
[329191559,1718166656802,-512.16020118,0.0001726,2]
[329191560,1718166656812,-500.0,0.0001726,2]
[329191561,1718166656823,-502.79293394,0.0001726,2]
[329191562,1718166656833,-500.0,0.0001726,2]
[329191563,1718166656843,-500.0,0.0001726,2]
[329191564,1718166656854,-151.0,0.0001726,2]
[329191565,1718166656864,-503.31503696,0.0001726,2]
[329191566,1718166656874,-151.0,0.0001726,2]
[329191567,1718166656884,-264.33269807,0.0001726,2]
[329191568,1718166656893,-242.249899,0.0001726,2]
[329191569,1718166656904,-500.0,0.0001726,2]
[329191570,1718166656914,-500.0,0.0001726,2]
[329191571,1718166656924,-242.249899,0.0001726,2]
[329191572,1718166656934,-500.0,0.0001726,2]
[329191573,1718166656944,-151.0,0.0001726,2]
[329191574,1718166656954,-500.0,0.0001726,2]
[329191575,1718166656964,-248.23675,0.0001726,2]
[329191576,1718166656974,-500.0,0.0001726,2]
[329191577,1718166656984,-500.0,0.0001726,2]
[329191578,1718166656994,-508.33036826,0.0001726,2]
[329191579,1718166657004,-569.55,0.0001726,2]
[329191580,1718166657014,-500.0,0.0001726,2]
[329191581,1718166657024,-3345.06,0.0001726,2]
[329191582,1718166657034,-500.0,0.0001726,2]
[329191583,1718166657044,-500.0,0.0001726,2]
[329191584,1718166657054,-500.0,0.0001726,2]
[329191585,1718166657063,-500.0,0.0001726,2]
[329191586,1718166657073,-510.24599889,0.0001726,2]
[329191587,1718166657083,-506.34432331,0.0001726,2]
[329191588,1718166657093,-500.0,0.0001726,2]
[329191589,1718166657103,-500.0,0.0001726,2]
[329191590,1718166657113,-500.0,0.0001726,2]
[329191591,1718166657123,-234.64588568,0.0001726,2]
[329191592,1718166657133,-186.421928,0.0001726,2]
[329191593,1718166657143,-186.421928,0.0001726,2]
[329191594,1718166657153,-500.0,0.0001726,2]
[329191595,1718166657164,-500.0,0.0001726,2]
[329191596,1718166657174,-186.421928,0.0001726,2]
[329191597,1718166657184,-186.421928,0.0001726,2]
[329191598,1718166657194,-500.0,0.0001726,2]
[329191599,1718166657204,-500.0,0.0001726,2]
[329191600,1718166657216,-500.0,0.0001726,2]
[329191601,1718166657227,-500.0,0.0001726,2]
[329191602,1718166657238,-500.0,0.0001726,2]
[329191603,1718166657248,-500.0,0.0001726,2]
[329191604,1718166657259,-500.0,0.0001726,2]
[329191605,1718166657269,-500.0,0.0001726,2]
[329191606,1718166657279,-500.0,0.0001726,2]
[329191607,1718166657290,-505.67910671,0.0001726,2]
[329191608,1718166657300,-773.49,0.0001726,2]
[329191609,1718166657310,-500.0,0.0001726,2]
[329191610,1718166657321,-319.30675189,0.0001726,2]
[329191611,1718166657331,-500.0,0.0001726,2]
[329191612,1718166657341,-235.30919,0.0001726,2]
[329191613,1718166657352,-500.0,0.0001726,2]
[329191614,1718166657361,-235.309193,0.0001726,2]
[329191615,1718166657372,-1263.66,0.0001726,2]
[329191616,1718166657386,-500.0,0.0001726,2]
[329191617,1718166657397,-500.0,0.0001726,2]
[329191618,1718166657407,-500.0,0.0001726,2]
[329191619,1718166657419,-200.99107043,0.0001726,2]
[329191620,1718166657429,-502.93715686,0.0001726,2]
[329191621,1718166657440,-500.0,0.0001726,2]
[329191622,1718166657450,-500.0,0.0001726,2]
[329191623,1718166657464,-500.0,0.0001726,2]
[329191624,1718166657476,-500.0,0.0001726,2]
[329191625,1718166657486,-500.0,0.0001726,2]
[329191626,1718166657496,-500.0,0.0001726,2]
[329191627,1718166657506,-500.0,0.0001726,2]
[329191628,1718166657517,-504.91804421,0.0001726,2]
[329191629,1718166657527,-2310.31,0.0001726,2]
[329191630,1718166657539,-1186.92,0.0001726,2]
[329191631,1718166657551,-545.89,0.0001726,2]
[329191632,1718166657562,-500.0,0.0001726,2]
[329191633,1718166657573,-500.0,0.0001726,2]
[329191634,1718166657584,-500.0,0.0001726,2]
[329191635,1718166657595,-500.0,0.0001726,2]
[329191636,1718166657605,-754.48,0.0001726,2]
[329191637,1718166657616,-500.0,0.0001726,2]
[329191638,1718166657626,-500.0,0.0001726,2]
[329191639,1718166657645,-500.0,0.0001726,2]
[329191640,1718166657661,-500.0,0.0001726,2]
[329191641,1718166657671,-833.92,0.0001726,2]
[329191642,1718166657681,-500.0,0.0001726,2]
[329191643,1718166657692,-500.0,0.0001726,2]
[329191644,1718166657705,-680.59,0.0001726,2]
[329191645,1718166657715,-504.26620568,0.0001726,2]
[329191646,1718166657728,-500.0,0.0001726,2]
[329191647,1718166657738,-9126.65,0.0001726,2]
[329191648,1718166657748,-500.0,0.0001726,2]
[329191649,1718166657759,-504.51495789,0.0001726,2]
[329191650,1718166657769,-500.0,0.0001726,2]
[329191651,1718166657779,-500.0,0.0001726,2]
[329191652,1718166657790,-500.0,0.0001726,2]
[329191653,1718166657802,-502.42748652,0.0001726,2]
[329191654,1718166657813,-500.0,0.0001726,2]
[329191655,1718166657922,-502.9,0.0001726,2]
[329191656,1718166657947,-500.0,0.0001726,2]
[329191657,1718166657959,-1524.46,0.0001726,2]
[329191658,1718166657969,-780.86,0.0001726,2]
[329191659,1718166657982,-500.0,0.0001726,2]
[329191660,1718166657992,-500.0,0.0001726,2]
[329191661,1718166658003,-500.0,0.0001726,2]
[329191662,1718166658013,-501.02092364,0.0001726,2]
[329191663,1718166658023,-500.0,0.0001726,2]
[329191664,1718166658033,-500.0,0.0001726,2]
[329191665,1718166658044,-500.0,0.0001726,2]
[329191666,1718166658054,-3307.4,0.0001726,2]
[329191667,1718166658065,-590.45,0.0001726,2]
[329191668,1718166658077,-504.29185432,0.0001726,2]
[329191669,1718166658089,-500.0,0.0001726,2]
[329191670,1718166658100,-500.0,0.0001726,2]
[329191671,1718166658110,-500.0,0.0001726,2]
[329191672,1718166658121,-7738.15,0.0001726,2]
[329191673,1718166658132,-2275.73,0.0001726,2]
[329191674,1718166658143,-500.0,0.0001726,2]
[329191675,1718166658153,-1982.9,0.0001726,2]
[329191676,1718166658164,-500.0,0.0001726,2]
[329191677,1718166658175,-500.0,0.0001726,2]
[329191678,1718166658185,-500.0,0.0001726,2]
[329191679,1718166658197,-500.0,0.0001726,2]
[329191680,1718166658207,-500.0,0.0001726,2]
[329191681,1718166658217,-500.0,0.0001726,2]
[329191682,1718166658230,-500.0,0.0001726,2]
[329191683,1718166658241,-500.0,0.0001726,4]
[329191684,1718166658251,-507.71,0.0001726,2]
[329191685,1718166658262,-500.0,0.0001726,2]
[329191686,1718166658272,-500.0,0.0001726,2]
[329191687,1718166658282,-500.0,0.0001726,2]
[329191688,1718166658292,-500.0,0.0001726,2]
[329191689,1718166658302,-500.0,0.0001726,2]
[329191690,1718166658313,-500.0,0.0001726,2]
[329191691,1718166658323,-500.0,0.0001726,2]
[329191692,1718166658333,-705.02,0.0001726,2]
[329191693,1718166658344,-500.0,0.0001726,2]
[329191694,1718166658354,-404.35118187,0.0001726,2]
[329191695,1718166658364,-577.72183822,0.0001726,2]
[329191696,1718166658375,-510.89382712,0.0001726,2]
[329191697,1718166658388,-6018.23,0.0001726,2]
[329191698,1718166658398,-500.0,0.0001726,2]
[329191699,1718166658409,-992.78,0.0001726,2]
[329191700,1718166658419,-500.0,0.0001726,2]
[329191701,1718166658431,-500.0,0.0001726,2]
[329191702,1718166658441,-500.0,0.0001726,2]
[329191703,1718166658453,-503.86776065,0.0001726,2]
[329191704,1718166658466,-379.10334995,0.0001726,2]
[329191705,1718166658477,-364.53588936,0.0001726,2]
[329191706,1718166658488,-500.0,0.0001726,2]
[329191707,1718166658498,-500.0,0.0001726,2]
[329191708,1718166658510,-500.0,0.0001726,2]
[329191709,1718166658520,-560.7719292,0.0001726,2]
[329191710,1718166658531,-500.0,0.0001726,2]
[329191711,1718166658542,-500.0,0.0001726,2]
[329191712,1718166658553,-500.0,0.0001726,2]
[329191713,1718166658563,-500.0,0.0001726,2]
[329191714,1718166658574,-500.0,0.0001726,2]
[329191715,1718166658585,-500.0,0.0001726,2]
[329191716,1718166658595,-500.0,0.0001726,2]
[329191717,1718166658606,-505.87696066,0.0001726,2]
[329191718,1718166658617,-513.50225528,0.0001726,2]
[329191719,1718166658628,-646.24,0.0001726,2]
[329191720,1718166658645,-953.2,0.0001726,2]
[329191721,1718166658656,-504.93859245,0.0001726,2]
[329191722,1718166658668,-1889.77,0.0001726,2]
[329191723,1718166658678,-400.27,0.0001726,2]
[329191724,1718166658689,-500.0,0.0001726,2]
[329191725,1718166658699,-500.0,0.0001726,2]
[329191726,1718166658710,-500.0,0.0001726,2]
[329191727,1718166658721,-500.0,0.0001726,2]
[329191728,1718166658732,-500.0,0.0001726,2]
[329191729,1718166658742,-500.0,0.0001726,2]
[329191730,1718166658753,-500.0,0.0001726,2]
[329191731,1718166658763,-509.95549602,0.0001726,2]
[329191732,1718166658773,-212.0,0.00017275,2]
[329191733,1718166658783,-3971.94,0.00017344,2]
[329191734,1718166658794,-625.45420499,0.00017356,2]
[329191735,1718166658804,-5281.92082876,0.00017477,2]
[329191736,1718166658815,-799.52,0.00017486,2]
[329191737,1718166658825,-799.52,0.00017486,2]
[329191738,1718166658835,-500.0,0.00017486,2]
[329191739,1718166658846,-500.0,0.00017486,2]
[329191740,1718166658856,-500.0,0.00017486,2]
[329191741,1718166658866,-500.0,0.00017486,2]
[329191742,1718166658876,-500.0,0.00017486,2]
[329191743,1718166658886,-500.0,0.00017486,2]
[329191744,1718166658896,-500.0,0.00017486,2]
[329191745,1718166658906,-500.0,0.00017487,2]
[329191746,1718166658917,-500.94295878,0.00017487,2]
[329191747,1718166658927,-501.11288431,0.00017487,2]
[329191748,1718166658937,-262.7404496,0.00017487,2]
[329191749,1718166658947,-151.0,0.00017487,2]
[329191750,1718166658957,-151.0,0.00017487,2]
[329191751,1718166658967,-242.249899,0.00017487,2]
[329191752,1718166658978,-242.249899,0.00017487,2]
[329191753,1718166658988,-151.0,0.00017487,2]
[329191754,1718166659000,-212.0,0.00017497,2]
[329191755,1718166659010,-627.28,0.00017533,2]
[329191756,1718166659022,-500.0,0.00017533,2]
[329191757,1718166659032,-3971.94,0.00017533,2]
[329191758,1718166659042,-3971.94,0.00017533,2]
[329191759,1718166659052,-3971.94,0.00017533,2]
[329191760,1718166659064,-3971.94,0.00017533,2]
[329191761,1718166659075,-3972.00065221,0.00017533,2]
[329191762,1718166659085,-151.0,0.00017534,2]
[329191763,1718166659096,-500.0,0.00017534,2]
[329191764,1718166659106,-500.0,0.00017534,2]
[329191765,1718166659116,-500.0,0.00017534,2]
[329191766,1718166659126,-500.0,0.00017534,2]
[329191767,1718166659138,-500.0,0.00017534,2]
[329191768,1718166659148,-151.0,0.00017534,2]
[329191769,1718166659158,-275.142065,0.00017534,2]
[329191770,1718166659168,-242.249899,0.00017534,2]
[329191771,1718166659178,-500.0,0.00017534,2]
[329191772,1718166659190,-500.0,0.00017534,2]
[329191773,1718166659201,-242.249899,0.00017534,2]
[329191774,1718166659211,-500.0,0.00017534,2]
[329191775,1718166659222,-151.0,0.00017534,2]
[329191776,1718166659232,-500.0,0.00017534,2]
[329191777,1718166659243,-500.0,0.00017534,2]
[329191778,1718166659254,-500.0,0.00017534,2]
[329191779,1718166659266,-569.55,0.00017534,2]
[329191780,1718166659278,-500.0,0.00017534,2]
[329191781,1718166659289,-3345.06,0.00017534,2]
[329191782,1718166659301,-491.36308645,0.00017534,2]
[329191783,1718166659312,-500.0,0.00017534,2]
[329191784,1718166659323,-429.94164619,0.00017534,2]
[329191785,1718166659335,-508.73609276,0.00017534,2]
[329191786,1718166659345,-500.0,0.00017534,2]
[329191787,1718166659357,-505.60901484,0.00017534,2]
[329191788,1718166659369,-500.0,0.00017534,2]
[329191789,1718166659382,-186.421928,0.00017534,2]
[329191790,1718166659393,-186.421928,0.00017534,2]
[329191791,1718166659405,-500.0,0.00017534,2]
[329191792,1718166659415,-500.0,0.00017534,2]
[329191793,1718166659427,-186.421928,0.00017534,2]
[329191794,1718166659438,-186.421937,0.00017534,2]
[329191795,1718166659449,-500.0,0.00017534,2]
[329191796,1718166659461,-500.0,0.00017534,2]
[329191797,1718166659472,-521.71453899,0.00017534,2]
[329191798,1718166659482,-500.0,0.00017534,2]
[329191799,1718166659492,-500.0,0.00017534,2]
[329191800,1718166659502,-500.0,0.00017534,2]
[329191801,1718166659512,-500.0,0.00017534,2]
[329191802,1718166659523,-500.0,0.00017534,2]
[329191803,1718166659533,-503.59768553,0.00017534,2]
[329191804,1718166659543,-773.49,0.00017534,2]
[329191805,1718166659554,-588.10580168,0.00017534,2]
[329191806,1718166659564,-526.29441157,0.00017534,2]
[329191807,1718166659575,-500.0,0.00017534,2]
[329191808,1718166659585,-1263.66,0.00017534,2]
[329191809,1718166659595,-500.0,0.00017534,2]
[329191810,1718166659605,-500.0,0.00017534,2]
[329191811,1718166659616,-530.5829225,0.00017534,2]
[329191812,1718166659626,-500.0,0.00017534,2]
[329191813,1718166659655,-500.0,0.00017534,2]
[329191814,1718166659665,-500.0,0.00017534,2]
[329191815,1718166659676,-504.1944284,0.00017534,2]
[329191816,1718166659686,-561.26486344,0.00017534,2]
[329191817,1718166659696,-404.57647126,0.00017534,2]
[329191818,1718166659707,-500.0,0.00017534,2]
[329191819,1718166659718,-2310.31,0.00017534,2]
[329191820,1718166659729,-1186.92,0.00017534,2]
[329191821,1718166659740,-545.89,0.00017534,2]
[329191822,1718166659752,-503.46470665,0.00017534,2]
[329191823,1718166659763,-500.0,0.00017534,2]
[329191824,1718166659773,-500.0,0.00017534,2]
[329191825,1718166659783,-500.0,0.00017534,2]
[329191826,1718166659793,-754.48,0.00017534,2]
[329191827,1718166659804,-500.0,0.00017534,2]
[329191828,1718166659815,-500.0,0.00017534,2]
[329191829,1718166659827,-500.0,0.00017534,2]
[329191830,1718166659838,-500.0,0.00017534,2]
[329191831,1718166659849,-833.92,0.00017534,2]
[329191832,1718166659860,-500.0,0.00017534,2]
[329191833,1718166659870,-511.15635574,0.00017534,2]
[329191834,1718166659881,-680.59,0.00017534,2]
[329191835,1718166659891,-504.82996224,0.00017534,2]
[329191836,1718166659901,-9126.65,0.00017534,2]
[329191837,1718166659911,-500.0,0.00017534,2]
[329191838,1718166659921,-216.4060918,0.00017534,2]
[329191839,1718166659931,-500.0,0.00017534,2]
[329191840,1718166659941,-208.08999013,0.00017534,2]
[329191841,1718166659951,-500.0,0.00017534,2]
[329191842,1718166659962,-502.9,0.00017534,2]
[329191843,1718166659972,-500.0,0.00017534,2]
[329191844,1718166659983,-1524.46,0.00017534,2]
[329191845,1718166659993,-780.86,0.00017534,2]
[329191846,1718166660005,-500.0,0.00017534,2]
[329191847,1718166660015,-500.0,0.00017534,2]
[329191848,1718166660025,-500.0,0.00017534,2]
[329191849,1718166660035,-500.0,0.00017534,2]
[329191850,1718166660046,-500.0,0.00017534,2]
[329191851,1718166660056,-500.0,0.00017534,2]
[329191852,1718166660069,-3307.4,0.00017534,2]
[329191853,1718166660081,-590.45,0.00017534,2]
[329191854,1718166660093,-500.0,0.00017534,2]
[329191855,1718166660104,-500.0,0.00017534,2]
[329191856,1718166660115,-500.0,0.00017534,2]
[329191857,1718166660125,-7738.15,0.00017534,2]
[329191858,1718166660135,-2275.73,0.00017534,2]
[329191859,1718166660146,-500.0,0.00017534,2]
[329191860,1718166660157,-1982.9,0.00017534,2]
[329191861,1718166660169,-500.0,0.00017534,2]
[329191862,1718166660181,-500.0,0.00017534,2]
[329191863,1718166660193,-581.6496706,0.00017534,2]
[329191864,1718166660204,-500.0,0.00017534,2]
[329191865,1718166660214,-500.0,0.00017534,2]
[329191866,1718166660225,-504.15185985,0.00017534,2]
[329191867,1718166660237,-500.0,0.00017534,2]
[329191868,1718166660247,-500.0,0.00017534,4]
[329191869,1718166660258,-507.71,0.00017534,2]
[329191870,1718166660268,-500.0,0.00017534,2]
[329191871,1718166660281,-507.14075811,0.00017534,2]
[329191872,1718166660293,-500.0,0.00017534,2]
[329191873,1718166660304,-500.0,0.00017534,2]
[329191874,1718166660315,-500.0,0.00017534,2]
[329191875,1718166660326,-460.21898114,0.00017534,2]
[329191876,1718166660338,-397.4158335,0.00017534,2]
[329191877,1718166660349,-705.02,0.00017534,2]
[329191878,1718166660360,-500.0,0.00017534,2]
[329191879,1718166660371,-6018.23,0.00017534,2]
[329191880,1718166660384,-500.0,0.00017534,2]
[329191881,1718166660398,-992.78,0.00017534,2]
[329191882,1718166660408,-500.0,0.00017534,2]
[329191883,1718166660419,-500.0,0.00017534,2]
[329191884,1718166660431,-500.0,0.00017534,2]
[329191885,1718166660441,-504.95465891,0.00017534,2]
[329191886,1718166660452,-500.0,0.00017534,2]
[329191887,1718166660463,-509.30829293,0.00017534,2]
[329191888,1718166660475,-400.27161015,0.00017534,2]
[329191889,1718166660486,-500.0,0.00017534,2]
[329191890,1718166660497,-500.0,0.00017534,2]
[329191891,1718166660508,-500.0,0.00017534,2]
[329191892,1718166660518,-500.0,0.00017534,2]
[329191893,1718166660529,-500.0,0.00017534,2]
[329191894,1718166660540,-500.0,0.00017534,2]
[329191895,1718166660552,-646.24,0.00017534,2]
[329191896,1718166660562,-953.2,0.00017534,2]
[329191897,1718166660573,-1889.77,0.00017534,2]
[329191898,1718166660584,-400.27,0.00017534,2]
[329191899,1718166660596,-500.0,0.00017534,2]
[329191900,1718166660606,-500.0,0.00017534,2]
[329191901,1718166660617,-500.0,0.00017534,2]
[329191902,1718166660628,-505.99340678,0.00017534,2]
[329191903,1718166660671,-500.0,0.00017534,2]
[329191904,1718166660682,-506.08061859,0.00017534,2]
[329191905,1718166660692,-500.0,0.00017534,2]
[329191906,1718166660702,-587.0,0.00017636,2]
[329191907,1718166660713,-799.52,0.00017648,2]
[329191908,1718166660723,-799.52,0.00017648,2]
[329191909,1718166660734,-151.0,0.00017648,2]
[329191910,1718166660745,-242.249899,0.00017648,2]
[329191911,1718166660859,-242.249892,0.00017648,2]
[329191912,1718166660870,-151.0,0.00017648,2]
[329191913,1718166660880,-627.28,0.00017648,2]
[329191914,1718166660890,-500.0,0.00017648,2]
[329191915,1718166660901,-563.73777314,0.00017648,2]
[329191916,1718166660912,-500.0,0.00017648,2]
[329191917,1718166660922,-500.0,0.00017648,2]
[329191918,1718166660933,-500.0,0.00017648,2]
[329191919,1718166660943,-500.0,0.00017648,2]
[329191920,1718166660955,-500.0,0.00017648,2]
[329191921,1718166660965,-500.0,0.00017648,2]
[329191922,1718166660975,-502.71541723,0.00017649,2]
[329191923,1718166660985,-315.55547614,0.00017649,2]
[329191924,1718166660995,-500.0,0.00017649,2]
[329191925,1718166661006,-1003.81612686,0.00017649,2]
[329191926,1718166661017,-504.49629429,0.00017649,2]
[329191927,1718166661029,-500.0,0.00017649,2]
[329191928,1718166661039,-500.0,0.00017649,2]
[329191929,1718166661050,-500.0,0.00017649,2]
[329191930,1718166661061,-500.0,0.00017649,2]
[329191931,1718166661072,-500.0,0.00017649,2]
[329191932,1718166661083,-500.0,0.00017649,2]
[329191933,1718166661094,-530.71258531,0.00017649,2]
[329191934,1718166661105,-151.0,0.00017649,2]
[329191935,1718166661115,-500.57995138,0.00017649,2]
[329191936,1718166661126,-502.48313315,0.00017649,2]